[Event "*** Titled Tuesday Blitz"]
[Site "Chess.com"]
[Date "2020.04.21"]
[Round "2"]
[White "jacky72"]
[Black "Frogo47"]
[Result "1-0"]
[WhiteElo "2710"]
[BlackElo "2491"]
[TimeControl "180+1"]
[EndTime "10:18:00 PDT"]
[Termination "jacky72 won on time"]

1. d4 {[%clk 0:03:00.9]} 1... Nf6 {[%clk 0:02:58.9]} 2. c4 {[%clk 0:03:01.2]}
2... g6 {[%clk 0:02:58.9]} 3. Nc3 {[%clk 0:03:00.8]} 3... d5 {[%clk 0:02:59.5]}
4. Nf3 {[%clk 0:03:00.8]} 4... Bg7 {[%clk 0:02:59.2]} 5. h4 {[%clk 0:03:01.1]}
5... dxc4 {[%clk 0:02:55.1]} 6. e4 {[%clk 0:03:00.7]} 6... c5 {[%clk 0:02:55.7]}
7. d5 {[%clk 0:03:00.7]} 7... b5 {[%clk 0:02:18.2]} 8. e5 {[%clk 0:02:58.8]}
8... Ng4 {[%clk 0:02:16.2]} 9. Bf4 {[%clk 0:02:58.8]} 9... a6 {[%clk 0:01:35.5]}
10. h5 {[%clk 0:02:54.1]} 10... O-O {[%clk 0:01:32.2]} 11. a4 {[%clk 0:02:44.9]}
11... b4 {[%clk 0:01:30.4]} 12. Ne4 {[%clk 0:02:44.9]} 12... Nd7 {[%clk
0:01:21.7]} 13. e6 {[%clk 0:02:37.2]} 13... fxe6 {[%clk 0:01:04.9]} 14. Bg3
{[%clk 0:02:37.2]} 14... Nde5 {[%clk 0:00:58.1]} 15. hxg6 {[%clk 0:02:33.5]}
15... hxg6 {[%clk 0:00:53.1]} 16. Nxe5 {[%clk 0:02:31.3]} 16... Nxe5 {[%clk
0:00:52.6]} 17. Bxe5 {[%clk 0:02:29.9]} 17... Bxe5 {[%clk 0:00:52.5]} 18. Qg4
{[%clk 0:02:22.5]} 18... Qe8 {[%clk 0:00:51.3]} 19. dxe6 {[%clk 0:02:16.8]}
19... Rf4 {[%clk 0:00:46.2]} 20. Qh3 {[%clk 0:02:13.3]} 20... Rxe4+ {[%clk
0:00:42.8]} 21. Be2 {[%clk 0:02:13.8]} 21... Bg7 {[%clk 0:00:39.9]} 22. Qh7+
{[%clk 0:02:05.8]} 22... Kf8 {[%clk 0:00:39.9]} 23. Qh8+ {[%clk 0:02:06.1]}
23... Bxh8 {[%clk 0:00:38.8]} 24. Rxh8+ {[%clk 0:02:07]} 24... Kg7 {[%clk
0:00:39.1]} 25. Rxe8 {[%clk 0:02:07.9]} 25... Rxe6 {[%clk 0:00:38.4]} 26. Kf1
{[%clk 0:02:01.9]} 26... Bb7 {[%clk 0:00:37.3]} 27. Rxa8 {[%clk 0:02:02.1]}
27... Bxa8 {[%clk 0:00:37.5]} 28. Bxc4 {[%clk 0:02:03]} 28... Re4 {[%clk
0:00:34.4]} 29. b3 {[%clk 0:02:02.5]} 29... a5 {[%clk 0:00:34.2]} 30. Rd1 {[%clk
0:02:02.3]} 30... Bc6 {[%clk 0:00:32.7]} 31. Rd8 {[%clk 0:01:56.5]} 31... Kf6
{[%clk 0:00:24.9]} 32. Rc8 {[%clk 0:01:54.4]} 32... Bxa4 {[%clk 0:00:20.2]} 33.
Rxc5 {[%clk 0:01:46.9]} 33... Bd7 {[%clk 0:00:19.6]} 34. Rxa5 {[%clk 0:01:44.2]}
34... Rd4 {[%clk 0:00:19.9]} 35. Ra6+ {[%clk 0:01:42.3]} 35... Kg7 {[%clk
0:00:19.3]} 36. Rb6 {[%clk 0:01:42.2]} 36... Rd2 {[%clk 0:00:18.1]} 37. Rxb4
{[%clk 0:01:39.7]} 37... Bf5 {[%clk 0:00:18.1]} 38. Rb6 {[%clk 0:01:29.6]} 38...
Bd3+ {[%clk 0:00:14.3]} 39. Bxd3 {[%clk 0:01:29.2]} 39... Rxd3 {[%clk
0:00:14.5]} 40. Ke2 {[%clk 0:01:25.6]} 40... Rc3 {[%clk 0:00:14.6]} 41. Kd2
{[%clk 0:01:25.6]} 41... Rc7 {[%clk 0:00:14.5]} 42. Rb4 {[%clk 0:01:23.9]} 42...
Kf6 {[%clk 0:00:13.9]} 43. Rc4 {[%clk 0:01:21.7]} 43... Ra7 {[%clk 0:00:13.5]}
44. Rc2 {[%clk 0:01:20.2]} 44... Ke5 {[%clk 0:00:13.5]} 45. Ke3 {[%clk
0:01:18.1]} 45... g5 {[%clk 0:00:11.2]} 46. Kf3 {[%clk 0:01:14.2]} 46... Kf5
{[%clk 0:00:10.6]} 47. g4+ {[%clk 0:01:12.1]} 47... Kf6 {[%clk 0:00:09.9]} 48.
Rb2 {[%clk 0:01:10.5]} 48... Ke5 {[%clk 0:00:08.3]} 49. b4 {[%clk 0:01:09.3]}
49... Kd4 {[%clk 0:00:08.6]} 50. b5 {[%clk 0:01:09.4]} 50... Rb7 {[%clk
0:00:06.8]} 51. b6 {[%clk 0:01:08.9]} 51... e5 {[%clk 0:00:06.4]} 52. Rb5 {[%clk
0:01:00.4]} 52... e4+ {[%clk 0:00:03.6]} 53. Ke2 {[%clk 0:01:00.6]} 53... Kc4
{[%clk 0:00:03.2]} 54. Rb1 {[%clk 0:01:00.7]} 54... Kd4 {[%clk 0:00:03.4]} 55.
Kd2 {[%clk 0:00:57.6]} 55... e3+ {[%clk 0:00:02.5]} 56. fxe3+ {[%clk 0:00:57.4]}
56... Ke4 {[%clk 0:00:03.4]} 57. Ke2 {[%clk 0:00:57]} 57... Kd5 {[%clk
0:00:02.7]} 58. Kd3 {[%clk 0:00:56.8]} 58... Ke5 {[%clk 0:00:02.6]} 59. Rb5+
{[%clk 0:00:56.8]} 59... Ke6 {[%clk 0:00:01.1]} 60. Ke4 {[%clk 0:00:57.7]} 1-0

[Event "*** Titled Tuesday Blitz"]
[Site "Chess.com"]
[Date "2020.04.21"]
[Round "2"]
[White "Noghay"]
[Black "Eliwood44"]
[Result "0-1"]
[WhiteElo "2588"]
[BlackElo "2321"]
[TimeControl "180+1"]
[EndTime "10:18:00 PDT"]
[Termination "Eliwood44 won by resignation"]

1. d4 {[%clk 0:03:00.9]} 1... Nf6 {[%clk 0:02:59.2]} 2. c4 {[%clk 0:03:00.2]}
2... e6 {[%clk 0:02:58.3]} 3. Nf3 {[%clk 0:02:59.6]} 3... d5 {[%clk 0:02:51.7]}
4. g3 {[%clk 0:02:58.7]} 4... Be7 {[%clk 0:02:49.1]} 5. Bg2 {[%clk 0:02:44.9]}
5... O-O {[%clk 0:02:48.5]} 6. O-O {[%clk 0:02:44.4]} 6... dxc4 {[%clk
0:02:48.7]} 7. Qc2 {[%clk 0:02:43.9]} 7... b5 {[%clk 0:02:46.8]} 8. a4 {[%clk
0:02:40.4]} 8... b4 {[%clk 0:02:45.6]} 9. Qxc4 {[%clk 0:02:39.2]} 9... Ba6
{[%clk 0:02:42.4]} 10. Qc2 {[%clk 0:02:39]} 10... Bb7 {[%clk 0:02:39.9]} 11. Bf4
{[%clk 0:02:30.1]} 11... Nc6 {[%clk 0:02:26.1]} 12. Rd1 {[%clk 0:02:21.2]} 12...
Nd5 {[%clk 0:02:19.1]} 13. a5 {[%clk 0:02:02.8]} 13... a6 {[%clk 0:02:10]} 14.
Bc1 {[%clk 0:01:46.7]} 14... Rc8 {[%clk 0:02:02.2]} 15. Nbd2 {[%clk 0:01:45.9]}
15... Nf6 {[%clk 0:01:57]} 16. Nb3 {[%clk 0:01:45.3]} 16... Nb8 {[%clk 0:01:46]}
17. Bg5 {[%clk 0:01:39.6]} 17... Be4 {[%clk 0:01:44]} 18. Qc1 {[%clk 0:01:33.6]}
18... Nbd7 {[%clk 0:01:42.9]} 19. e3 {[%clk 0:01:06.9]} 19... c6 {[%clk
0:01:24.7]} 20. Bxf6 {[%clk 0:01:06.2]} 20... Nxf6 {[%clk 0:01:23.1]} 21. Nc5
{[%clk 0:01:02.5]} 21... Bxc5 {[%clk 0:01:20.7]} 22. Qxc5 {[%clk 0:01:03.1]}
22... b3 {[%clk 0:01:12.7]} 23. Ne5 {[%clk 0:01:02.7]} 23... Bxg2 {[%clk
0:01:03.9]} 24. Kxg2 {[%clk 0:01:03.6]} 24... Qd5+ {[%clk 0:01:03.7]} 25. f3
{[%clk 0:01:01.3]} 25... Rfd8 {[%clk 0:00:46.4]} 26. e4 {[%clk 0:00:59.1]} 26...
Qxc5 {[%clk 0:00:41.6]} 27. dxc5 {[%clk 0:01:00]} 27... Rxd1 {[%clk 0:00:33.2]}
28. Rxd1 {[%clk 0:01:00.9]} 28... Kf8 {[%clk 0:00:33.2]} 29. Rd6 {[%clk
0:00:57.2]} 29... Ne8 {[%clk 0:00:28.6]} 30. Rxc6 {[%clk 0:00:51.1]} 30... Rxc6
{[%clk 0:00:28.4]} 31. Nxc6 {[%clk 0:00:52]} 31... Nc7 {[%clk 0:00:28.9]} 32.
Nd4 {[%clk 0:00:49.9]} 32... Ke7 {[%clk 0:00:27]} 33. Nxb3 {[%clk 0:00:50.5]}
33... Kd7 {[%clk 0:00:27.3]} 34. Nd4 {[%clk 0:00:50.1]} 34... e5 {[%clk
0:00:27.2]} 35. Nf5 {[%clk 0:00:45]} 35... g6 {[%clk 0:00:27.4]} 36. Nh6 {[%clk
0:00:44]} 36... f6 {[%clk 0:00:24.6]} 37. Ng8 {[%clk 0:00:41.4]} 37... Ne8
{[%clk 0:00:24.7]} 38. f4 {[%clk 0:00:40]} 38... exf4 {[%clk 0:00:23.9]} 39.
gxf4 {[%clk 0:00:40.2]} 39... Kc6 {[%clk 0:00:24.2]} 40. b4 {[%clk 0:00:40.3]}
40... Kb5 {[%clk 0:00:24.1]} 41. e5 {[%clk 0:00:40.9]} 41... fxe5 {[%clk
0:00:23.9]} 42. fxe5 {[%clk 0:00:41.8]} 42... Kxb4 {[%clk 0:00:24.3]} 43. c6
{[%clk 0:00:38.8]} 43... Kxa5 {[%clk 0:00:24.5]} 44. Nf6 {[%clk 0:00:38.9]}
44... Nc7 {[%clk 0:00:21.9]} 45. Nd7 {[%clk 0:00:22]} 45... Kb5 {[%clk
0:00:20.2]} 46. Nb8 {[%clk 0:00:20.8]} 46... a5 {[%clk 0:00:19.6]} 47. Kf3
{[%clk 0:00:21.2]} 47... a4 {[%clk 0:00:19.1]} 48. Ke3 {[%clk 0:00:21.6]} 48...
a3 {[%clk 0:00:18.2]} 0-1

[Event "*** Titled Tuesday Blitz"]
[Site "Chess.com"]
[Date "2020.04.21"]
[Round "2"]
[White "Kavyev_Ruslan"]
[Black "narutosmith"]
[Result "1-0"]
[WhiteElo "2583"]
[BlackElo "2248"]
[TimeControl "180+1"]
[EndTime "10:18:01 PDT"]
[Termination "Kavyev_Ruslan won on time"]

1. d4 {[%clk 0:03:00.9]} 1... Nf6 {[%clk 0:02:58.9]} 2. c4 {[%clk 0:03:01.4]}
2... e6 {[%clk 0:02:59.3]} 3. Nf3 {[%clk 0:03:01.5]} 3... Bb4+ {[%clk
0:02:59.7]} 4. Nbd2 {[%clk 0:03:00.6]} 4... O-O {[%clk 0:02:57.8]} 5. g3 {[%clk
0:03:00.9]} 5... d6 {[%clk 0:02:58]} 6. Bg2 {[%clk 0:03:01.1]} 6... Nbd7 {[%clk
0:02:57.2]} 7. O-O {[%clk 0:03:00.4]} 7... e5 {[%clk 0:02:57.6]} 8. e3 {[%clk
0:03:00.3]} 8... Qe7 {[%clk 0:02:51.4]} 9. a3 {[%clk 0:02:37.2]} 9... Bxd2
{[%clk 0:02:49.6]} 10. Bxd2 {[%clk 0:02:38.1]} 10... a5 {[%clk 0:02:47.3]} 11.
b4 {[%clk 0:02:33.5]} 11... axb4 {[%clk 0:02:45.6]} 12. axb4 {[%clk 0:02:34.4]}
12... Rxa1 {[%clk 0:02:44.9]} 13. Qxa1 {[%clk 0:02:35.3]} 13... e4 {[%clk
0:02:42]} 14. Ne1 {[%clk 0:02:34.6]} 14... Nb6 {[%clk 0:02:27.3]} 15. Qc3 {[%clk
0:02:19]} 15... d5 {[%clk 0:02:24.7]} 16. c5 {[%clk 0:02:17.5]} 16... Nc4 {[%clk
0:02:16.2]} 17. Nc2 {[%clk 0:02:17.3]} 17... Bd7 {[%clk 0:02:11]} 18. Ra1 {[%clk
0:02:14.2]} 18... Rb8 {[%clk 0:01:49.2]} 19. Na3 {[%clk 0:02:11.5]} 19... b5
{[%clk 0:01:20.2]} 20. cxb6 {[%clk 0:01:54]} 20... cxb6 {[%clk 0:01:21]} 21.
Nxc4 {[%clk 0:01:50.3]} 21... Rc8 {[%clk 0:01:20.6]} 22. Bf1 {[%clk 0:01:44.6]}
22... b5 {[%clk 0:01:15.9]} 23. Ra7 {[%clk 0:01:40.6]} 23... bxc4 {[%clk
0:01:12.9]} 24. b5 {[%clk 0:01:21.8]} 24... Qd6 {[%clk 0:01:05.6]} 25. Ra6
{[%clk 0:01:20.2]} 25... Qb8 {[%clk 0:01:00.5]} 26. b6 {[%clk 0:01:16.6]} 26...
Bb5 {[%clk 0:00:58.2]} 27. Qa5 {[%clk 0:00:59]} 27... Bxa6 {[%clk 0:00:53.9]}
28. Qxa6 {[%clk 0:00:59.9]} 28... Rc6 {[%clk 0:00:46.6]} 29. Ba5 {[%clk
0:00:51.5]} 29... c3 {[%clk 0:00:40.3]} 30. Qa7 {[%clk 0:00:28]} 30... Rxb6
{[%clk 0:00:08]} 31. Qxb8+ {[%clk 0:00:25.2]} 31... Rxb8 {[%clk 0:00:07.2]} 32.
Bxc3 {[%clk 0:00:26.1]} 32... Rb1 {[%clk 0:00:06.6]} 33. Kg2 {[%clk 0:00:23.6]}
33... Rc1 {[%clk 0:00:06.8]} 34. Bb4 {[%clk 0:00:22]} 34... Rc2 {[%clk
0:00:06.7]} 35. h3 {[%clk 0:00:22]} 35... Nd7 {[%clk 0:00:06.2]} 36. Bd6 {[%clk
0:00:19.5]} 36... Nb6 {[%clk 0:00:05.9]} 37. Bc5 {[%clk 0:00:17.3]} 37... Nc4
{[%clk 0:00:05.9]} 38. Kg1 {[%clk 0:00:17.6]} 38... Nd2 {[%clk 0:00:05.3]} 39.
Bb5 {[%clk 0:00:10.4]} 39... Nf3+ {[%clk 0:00:04.2]} 40. Kg2 {[%clk 0:00:10.9]}
40... Rb2 {[%clk 0:00:04.5]} 41. Bc6 {[%clk 0:00:10.7]} 41... Rb1 {[%clk
0:00:04.4]} 42. h4 {[%clk 0:00:11.2]} 42... Rg1+ {[%clk 0:00:04]} 43. Kh3 {[%clk
0:00:11.3]} 43... Rh1+ {[%clk 0:00:03.6]} 44. Kg4 {[%clk 0:00:10.3]} 1-0

[Event "*** Titled Tuesday Blitz"]
[Site "Chess.com"]
[Date "2020.04.21"]
[Round "2"]
[White "UmutErdemGunduz"]
[Black "ShieldingOff"]
[Result "0-1"]
[WhiteElo "2362"]
[BlackElo "2012"]
[TimeControl "180+1"]
[EndTime "10:18:01 PDT"]
[Termination "ShieldingOff won by checkmate"]

1. Nf3 {[%clk 0:03:00.9]} 1... Nf6 {[%clk 0:02:59.1]} 2. c4 {[%clk 0:03:00.2]}
2... g6 {[%clk 0:02:58.9]} 3. Nc3 {[%clk 0:02:59.3]} 3... Bg7 {[%clk 0:02:58.9]}
4. g3 {[%clk 0:02:58.5]} 4... O-O {[%clk 0:02:57.7]} 5. Bg2 {[%clk 0:02:57.2]}
5... c6 {[%clk 0:02:57.8]} 6. O-O {[%clk 0:02:53.2]} 6... d5 {[%clk 0:02:57.8]}
7. d4 {[%clk 0:02:52.9]} 7... Bf5 {[%clk 0:02:53.7]} 8. b3 {[%clk 0:02:48.6]}
8... Qc8 {[%clk 0:02:46.9]} 9. Re1 {[%clk 0:02:43.9]} 9... Bh3 {[%clk
0:02:46.6]} 10. Bh1 {[%clk 0:02:42.4]} 10... h6 {[%clk 0:02:34.7]} 11. Bb2
{[%clk 0:02:28.5]} 11... Qf5 {[%clk 0:02:31.7]} 12. Ne5 {[%clk 0:02:16.9]} 12...
Qh5 {[%clk 0:02:11.2]} 13. cxd5 {[%clk 0:02:11.7]} 13... cxd5 {[%clk 0:01:46.7]}
14. Nxd5 {[%clk 0:02:10.5]} 14... Nxd5 {[%clk 0:01:26]} 15. Bxd5 {[%clk
0:02:08.3]} 15... Nc6 {[%clk 0:01:19.3]} 16. Nxc6 {[%clk 0:02:02.8]} 16... bxc6
{[%clk 0:01:18.1]} 17. Bxc6 {[%clk 0:02:02.7]} 17... Rac8 {[%clk 0:01:14]} 18.
Rc1 {[%clk 0:01:57.3]} 18... Rfd8 {[%clk 0:01:11.5]} 19. Bf3 {[%clk 0:01:53.5]}
19... Qa5 {[%clk 0:01:05.4]} 20. a4 {[%clk 0:01:37.1]} 20... Be6 {[%clk
0:01:04]} 21. Ba3 {[%clk 0:01:21.2]} 21... Rxd4 {[%clk 0:00:53.7]} 22. Rxc8+
{[%clk 0:01:16.6]} 22... Bxc8 {[%clk 0:00:52.1]} 23. Qc1 {[%clk 0:01:15]} 23...
Be6 {[%clk 0:00:34.8]} 24. Bb2 {[%clk 0:00:51.9]} 24... Rb4 {[%clk 0:00:24.4]}
25. Bxg7 {[%clk 0:00:43.3]} 25... Kxg7 {[%clk 0:00:22.4]} 26. Qc3+ {[%clk
0:00:43.2]} 26... f6 {[%clk 0:00:17.5]} 27. Rb1 {[%clk 0:00:40.7]} 27... Qb6
{[%clk 0:00:17.6]} 28. a5 {[%clk 0:00:21.2]} 28... Qb5 {[%clk 0:00:16.5]} 29.
Bc6 {[%clk 0:00:12.5]} 29... Qb8 {[%clk 0:00:15.4]} 30. a6 {[%clk 0:00:06.9]}
30... Rxb3 {[%clk 0:00:10.6]} 31. Rxb3 {[%clk 0:00:07]} 31... Qxb3 {[%clk
0:00:10.4]} 32. Qc5 {[%clk 0:00:07.3]} 32... Kf7 {[%clk 0:00:05.7]} 33. Qxa7
{[%clk 0:00:07.1]} 33... Bh3 {[%clk 0:00:02.9]} 34. f3 {[%clk 0:00:02.4]} 34...
Qd1+ {[%clk 0:00:02.5]} 35. Kf2 {[%clk 0:00:02.5]} 35... Qf1+ {[%clk 0:00:02.8]}
36. Ke3 {[%clk 0:00:01.7]} 36... Qg1+ {[%clk 0:00:03.7]} 37. Ke4 {[%clk
0:00:02.1]} 37... Qxa7 {[%clk 0:00:03.7]} 38. Bb7 {[%clk 0:00:03]} 38... Qc5
{[%clk 0:00:03.3]} 39. e3 {[%clk 0:00:02.7]} 39... Bf5+ {[%clk 0:00:03.4]} 40.
Kf4 {[%clk 0:00:02.8]} 40... Qe5# {[%clk 0:00:03.6]} 0-1

[Event "*** Titled Tuesday Blitz"]
[Site "Chess.com"]
[Date "2020.04.21"]
[Round "2"]
[White "Hippotaner"]
[Black "Phriex"]
[Result "0-1"]
[WhiteElo "2245"]
[BlackElo "2465"]
[TimeControl "180+1"]
[EndTime "10:18:02 PDT"]
[Termination "Phriex won on time"]

1. Nf3 {[%clk 0:03:00]} 1... d5 {[%clk 0:02:59.9]} 2. g3 {[%clk 0:02:55.3]} 2...
c6 {[%clk 0:02:59.9]} 3. Bg2 {[%clk 0:02:52.9]} 3... Nf6 {[%clk 0:03:00.5]} 4.
O-O {[%clk 0:02:50.5]} 4... Bf5 {[%clk 0:03:00.4]} 5. d3 {[%clk 0:02:50]} 5...
e6 {[%clk 0:03:00.8]} 6. Nbd2 {[%clk 0:02:49]} 6... h6 {[%clk 0:03:01.4]} 7. b3
{[%clk 0:02:48.5]} 7... Nbd7 {[%clk 0:03:00.6]} 8. Bb2 {[%clk 0:02:49.4]} 8...
Be7 {[%clk 0:03:00.9]} 9. c4 {[%clk 0:02:48.9]} 9... O-O {[%clk 0:03:01.1]} 10.
a3 {[%clk 0:02:48]} 10... a5 {[%clk 0:03:01.5]} 11. Qb1 {[%clk 0:02:42.9]} 11...
Bh7 {[%clk 0:02:59]} 12. b4 {[%clk 0:02:41.4]} 12... axb4 {[%clk 0:02:49.2]} 13.
axb4 {[%clk 0:02:41.1]} 13... Rxa1 {[%clk 0:02:49.8]} 14. Bxa1 {[%clk 0:02:41]}
14... Qb6 {[%clk 0:02:47.5]} 15. Bc3 {[%clk 0:02:36.2]} 15... dxc4 {[%clk
0:02:39.8]} 16. Nxc4 {[%clk 0:02:14]} 16... Qb5 {[%clk 0:02:39.8]} 17. Qb2
{[%clk 0:01:57.5]} 17... Ra8 {[%clk 0:02:25.5]} 18. Nd4 {[%clk 0:01:23.5]} 18...
Qa4 {[%clk 0:02:24.8]} 19. b5 {[%clk 0:00:56.7]} 19... e5 {[%clk 0:02:11]} 20.
bxc6 {[%clk 0:00:28.1]} 20... exd4 {[%clk 0:02:04.9]} 21. Bxd4 {[%clk
0:00:28.3]} 21... bxc6 {[%clk 0:02:00.2]} 22. Rc1 {[%clk 0:00:24.5]} 22... Rb8
{[%clk 0:01:59.9]} 23. Qd2 {[%clk 0:00:22.5]} 23... Nd5 {[%clk 0:01:41.2]} 24.
e4 {[%clk 0:00:17.4]} 24... Nb4 {[%clk 0:01:25.6]} 25. Qf4 {[%clk 0:00:17.6]}
25... Bg5 {[%clk 0:01:22.1]} 26. Qg4 {[%clk 0:00:14.6]} 26... c5 {[%clk
0:01:16.3]} 27. Bc3 {[%clk 0:00:09.6]} 27... Nxd3 {[%clk 0:01:14.2]} 28. Rd1
{[%clk 0:00:09.4]} 28... Qxc4 {[%clk 0:01:12.4]} 29. Ba1 {[%clk 0:00:09.8]}
29... N7e5 {[%clk 0:01:08.7]} 30. Qe2 {[%clk 0:00:08.5]} 30... Nb2 {[%clk
0:00:50.7]} 31. Qxc4 {[%clk 0:00:06]} 31... Nbxc4 {[%clk 0:00:51.1]} 32. f4
{[%clk 0:00:04.6]} 32... Ne3 {[%clk 0:00:47.4]} 33. Re1 {[%clk 0:00:04.3]} 33...
Nxg2 {[%clk 0:00:44.9]} 34. Kxg2 {[%clk 0:00:03.3]} 34... Nd3 {[%clk 0:00:42.7]}
35. Re3 {[%clk 0:00:01.7]} 35... Re8 {[%clk 0:00:35.2]} 36. fxg5 {[%clk
0:00:01.8]} 36... Bxe4+ {[%clk 0:00:34.3]} 37. Kf1 {[%clk 0:00:02.1]} 37... hxg5
{[%clk 0:00:33.9]} 38. Bc3 {[%clk 0:00:02.3]} 38... c4 {[%clk 0:00:33.3]} 39. h3
{[%clk 0:00:01.9]} 39... f5 {[%clk 0:00:32.9]} 40. Ke2 {[%clk 0:00:02.3]} 40...
Ra8 {[%clk 0:00:29.7]} 41. Kf1 {[%clk 0:00:02.1]} 41... Ra2 {[%clk 0:00:28.9]}
42. Bd4 {[%clk 0:00:02.6]} 42... Rc2 {[%clk 0:00:22.9]} 43. Re2 {[%clk
0:00:02.7]} 43... Rc1+ {[%clk 0:00:18.4]} 0-1

[Event "*** Titled Tuesday Blitz"]
[Site "Chess.com"]
[Date "2020.04.21"]
[Round "2"]
[White "Volodar_Murzin"]
[Black "Bigfish1995"]
[Result "1-0"]
[WhiteElo "2628"]
[BlackElo "3061"]
[TimeControl "180+1"]
[EndTime "10:18:03 PDT"]
[Termination "Volodar_Murzin won by resignation"]

1. d4 {[%clk 0:03:00.9]} 1... Nf6 {[%clk 0:02:58.8]} 2. Nf3 {[%clk 0:03:00.4]}
2... e6 {[%clk 0:02:58.8]} 3. Bf4 {[%clk 0:02:58.7]} 3... c5 {[%clk 0:02:51.9]}
4. e3 {[%clk 0:02:51]} 4... d5 {[%clk 0:02:51.7]} 5. Nbd2 {[%clk 0:02:49.9]}
5... Nc6 {[%clk 0:02:51.8]} 6. c3 {[%clk 0:02:49.5]} 6... cxd4 {[%clk
0:02:51.6]} 7. exd4 {[%clk 0:02:49]} 7... Nh5 {[%clk 0:02:50.8]} 8. Bg3 {[%clk
0:02:48.5]} 8... Bd6 {[%clk 0:02:40.5]} 9. Bb5 {[%clk 0:02:10.8]} 9... Nxg3
{[%clk 0:02:39.4]} 10. hxg3 {[%clk 0:02:10.5]} 10... Bd7 {[%clk 0:02:40.1]} 11.
Bd3 {[%clk 0:02:07.4]} 11... h6 {[%clk 0:02:38.4]} 12. Qe2 {[%clk 0:02:06.5]}
12... Qc7 {[%clk 0:02:36.9]} 13. g4 {[%clk 0:02:03.1]} 13... O-O-O {[%clk
0:02:34.5]} 14. O-O-O {[%clk 0:02:02]} 14... f6 {[%clk 0:02:18.8]} 15. Kb1
{[%clk 0:01:56.4]} 15... e5 {[%clk 0:02:14]} 16. dxe5 {[%clk 0:01:48.9]} 16...
fxe5 {[%clk 0:02:12.6]} 17. Bf5 {[%clk 0:01:49.1]} 17... g5 {[%clk 0:01:53]} 18.
Nb3 {[%clk 0:01:41.7]} 18... Bxf5+ {[%clk 0:01:28.2]} 19. gxf5 {[%clk
0:01:40.9]} 19... Qf7 {[%clk 0:01:21.6]} 20. g4 {[%clk 0:01:39.7]} 20... Bc7
{[%clk 0:00:59.8]} 21. Nc5 {[%clk 0:01:34]} 21... e4 {[%clk 0:00:52.7]} 22. Nd4
{[%clk 0:01:18.1]} 22... Nxd4 {[%clk 0:00:48.3]} 23. cxd4 {[%clk 0:01:19]} 23...
Rd6 {[%clk 0:00:46.5]} 24. Rc1 {[%clk 0:01:04.5]} 24... Kb8 {[%clk 0:00:46.3]}
25. f3 {[%clk 0:00:58.1]} 25... Re8 {[%clk 0:00:43.9]} 26. fxe4 {[%clk 0:00:56]}
26... dxe4 {[%clk 0:00:43.9]} 27. Ne6 {[%clk 0:00:56.1]} 27... Rexe6 {[%clk
0:00:41.2]} 28. fxe6 {[%clk 0:00:55.8]} 28... Qxe6 {[%clk 0:00:42.1]} 29. Rhf1
{[%clk 0:00:48.8]} 29... a6 {[%clk 0:00:38.6]} 30. Rf8+ {[%clk 0:00:44.8]} 30...
Bd8 {[%clk 0:00:38.8]} 31. Qh2 {[%clk 0:00:42.1]} 31... Ka7 {[%clk 0:00:37.5]}
32. Qe5 {[%clk 0:00:40]} 32... Bb6 {[%clk 0:00:31.9]} 33. Rcc8 {[%clk
0:00:18.8]} 33... Bxd4 {[%clk 0:00:20.7]} 34. Qa5 {[%clk 0:00:19.2]} 34... Qxc8
{[%clk 0:00:13.8]} 35. Rxc8 {[%clk 0:00:19.2]} 35... e3 {[%clk 0:00:14.7]} 36.
Qc7 {[%clk 0:00:18.1]} 36... Re6 {[%clk 0:00:10]} 37. Qd7 {[%clk 0:00:13.9]}
37... Re4 {[%clk 0:00:09.8]} 38. Qd5 {[%clk 0:00:12.9]} 38... Rxg4 {[%clk
0:00:09]} 39. Rc7 {[%clk 0:00:11.5]} 1-0

[Event "*** Titled Tuesday Blitz"]
[Site "Chess.com"]
[Date "2020.04.21"]
[Round "2"]
[White "Gordima"]
[Black "Chessmasterzt"]
[Result "1-0"]
[WhiteElo "2710"]
[BlackElo "2493"]
[TimeControl "180+1"]
[EndTime "10:18:03 PDT"]
[Termination "Gordima won on time"]

1. d4 {[%clk 0:03:00.9]} 1... d6 {[%clk 0:02:56.3]} 2. Nf3 {[%clk 0:02:59.2]}
2... Nf6 {[%clk 0:02:55.4]} 3. c4 {[%clk 0:02:59.2]} 3... g6 {[%clk 0:02:55.8]}
4. g3 {[%clk 0:02:59.2]} 4... Bg7 {[%clk 0:02:56.7]} 5. Bg2 {[%clk 0:02:59.7]}
5... O-O {[%clk 0:02:56.6]} 6. O-O {[%clk 0:03:00.1]} 6... Nbd7 {[%clk
0:02:55.8]} 7. Nc3 {[%clk 0:02:59.9]} 7... e5 {[%clk 0:02:56]} 8. e4 {[%clk
0:03:00.1]} 8... exd4 {[%clk 0:02:54.9]} 9. Nxd4 {[%clk 0:02:59.9]} 9... Re8
{[%clk 0:02:55.2]} 10. Re1 {[%clk 0:02:57.1]} 10... Nc5 {[%clk 0:02:55.2]} 11.
h3 {[%clk 0:02:53.6]} 11... Bd7 {[%clk 0:02:52.4]} 12. Kh2 {[%clk 0:02:50.4]}
12... h5 {[%clk 0:02:47.7]} 13. Bf4 {[%clk 0:02:41.5]} 13... Ne6 {[%clk
0:02:35.1]} 14. Be3 {[%clk 0:02:32.4]} 14... Nxd4 {[%clk 0:02:26.5]} 15. Bxd4
{[%clk 0:02:33.3]} 15... Bc6 {[%clk 0:02:26.8]} 16. Qd2 {[%clk 0:02:28.7]} 16...
Nd7 {[%clk 0:02:15.7]} 17. Rad1 {[%clk 0:02:21.4]} 17... Bxd4 {[%clk 0:02:08.2]}
18. Qxd4 {[%clk 0:02:22.3]} 18... h4 {[%clk 0:01:55.1]} 19. g4 {[%clk
0:02:15.1]} 19... Qg5 {[%clk 0:01:54.7]} 20. Ne2 {[%clk 0:02:05]} 20... Qe5+
{[%clk 0:01:54]} 21. f4 {[%clk 0:02:04.6]} 21... Qxd4 {[%clk 0:01:47.7]} 22.
Nxd4 {[%clk 0:02:05.5]} 22... Nc5 {[%clk 0:01:34.9]} 23. Nxc6 {[%clk 0:01:52.9]}
23... bxc6 {[%clk 0:01:35.8]} 24. e5 {[%clk 0:01:46.1]} 24... Rab8 {[%clk
0:01:22.3]} 25. b3 {[%clk 0:01:45.6]} 25... dxe5 {[%clk 0:01:18.2]} 26. Bxc6
{[%clk 0:01:09.5]} 26... Red8 {[%clk 0:01:18.4]} 27. fxe5 {[%clk 0:01:02]} 27...
a5 {[%clk 0:01:17.9]} 28. Rd5 {[%clk 0:00:58.5]} 28... Nd3 {[%clk 0:00:48.3]}
29. Re2 {[%clk 0:00:36.2]} 29... Rxd5 {[%clk 0:00:25.9]} 30. cxd5 {[%clk
0:00:32.7]} 30... Nb4 {[%clk 0:00:21.3]} 31. e6 {[%clk 0:00:20.2]} 31... Nxc6
{[%clk 0:00:17.2]} 32. dxc6 {[%clk 0:00:17]} 32... fxe6 {[%clk 0:00:17.3]} 33.
Rxe6 {[%clk 0:00:17.2]} 33... Kf7 {[%clk 0:00:17.4]} 34. Re4 {[%clk 0:00:11.4]}
34... Rb4 {[%clk 0:00:13.9]} 35. Re3 {[%clk 0:00:03.5]} 35... a4 {[%clk
0:00:13.8]} 36. Rc3 {[%clk 0:00:02.1]} 36... axb3 {[%clk 0:00:13.4]} 37. axb3
{[%clk 0:00:03]} 37... Rd4 {[%clk 0:00:10.9]} 38. Kg2 {[%clk 0:00:03.3]} 38...
Rf4 {[%clk 0:00:08.3]} 39. Rf3 {[%clk 0:00:02.5]} 39... Rf6 {[%clk 0:00:06.6]}
40. g5 {[%clk 0:00:02.3]} 40... Rf5 {[%clk 0:00:06]} 41. Rxf5+ {[%clk
0:00:02.1]} 41... gxf5 {[%clk 0:00:06.9]} 42. Kf3 {[%clk 0:00:02.8]} 1-0